fUST/lending_fUST_20240324
["ID","MTS","AMOUNT","RATE_DAILY","PERIOD"]
[320324265,1711290648250,-2633.667466,0.000869,120]
[320324267,1711290648261,-1406.614638,0.000869,120]
[320324269,1711290648271,-1406.614638,0.000869,120]
[320324271,1711290648282,-151.0,0.00087644,120]
[320324273,1711290648293,-155.76539797,0.00087976,7]
[320324275,1711290648304,-2000.0,0.00088,60]
[320324278,1711290648314,-43155.84652844,0.00088,50]
[320324280,1711290648324,-8745.45361919,0.00088,120]
[320324282,1711290648335,-947.5993684,0.0008861,7]
[320324283,1711290648346,-151.0,0.00088904,120]
[320324286,1711290648358,-15400.00000068,0.00089,30]
[320324287,1711290648369,-150.0,0.00089811,120]
[320324290,1711290648380,-268.81857924,0.0009,120]
[320324291,1711290648390,-1000.0,0.0009,120]
[320324293,1711290648401,-1000.0,0.0009,120]
[320324296,1711290648414,-197.11801699,0.0009,120]
[320324362,1711291232117,160.54863667,0.0001999,2]
[320324363,1711291303185,313.14814238,0.0001999,2]
[320324364,1711291319194,313.14814238,0.0001999,2]
[320324365,1711291341196,451.64891159,0.0001999,2]
[320325232,1711291480462,178.5708058,0.00019418,2]
[320325254,1711291537096,-156.39858452,0.00020623,2]
[320325255,1711291537116,-180.18452548,0.00020624,2]
[320325256,1711291537136,-1301.1712291,0.00020624,2]
[320325257,1711291537155,-239.42982429,0.00020625,2]
[320325258,1711291537173,-1956.4009711,0.00020625,2]
[320325259,1711291537193,-864.19676408,0.00020626,2]
[320325260,1711291537214,-400.0,0.00020626,2]
[320325261,1711291537233,-559.89028424,0.00020627,2]
[320325262,1711291537251,-154.8915759,0.00020627,2]
[320325263,1711291537271,-300.0,0.00020629,2]
[320325264,1711291537290,-203.05274598,0.0002063,2]
[320325265,1711291537309,-21664.11502855,0.00020632,2]
[320325302,1711291630138,1070.908785,0.00019673,2]
[320325303,1711291639129,-154.8915759,0.00020629,2]
[320325304,1711291639156,-1301.1712291,0.00020629,2]
[320325305,1711291639182,-156.39858452,0.00020629,2]
[320325306,1711291639205,-274.50729874,0.0002063,2]
[320325307,1711291639228,-189.01939393,0.00020631,2]
[320325308,1711291639254,-285.19321112,0.00020631,2]
[320325309,1711291639279,-862.73481056,0.00020631,2]
[320325310,1711291639304,-558.9497818,0.00020631,2]
[320325311,1711291639328,-217.65777738,0.00020631,2]
[320325312,1711291639352,-1986.26675742,0.00020631,2]
[320325313,1711291639372,-271.11235426,0.00020632,2]
[320325314,1711291639398,-26113.59211102,0.00020632,2]
[320325315,1711291639421,-24890.0,0.00020633,2]
[320325316,1711291639444,-228.14352074,0.00020796,2]
[320325317,1711291639467,-641.14972711,0.00020896,2]
[320325318,1711291639492,-500.0,0.00021939,2]
[320325319,1711291639515,-500.0,0.00021939,2]
[320325320,1711291639537,-216.03142952,0.00021939,2]
[320325321,1711291639557,-500.0,0.00021939,2]
[320325322,1711291639583,-500.0,0.00021939,2]
[320325323,1711291639605,-405.61597778,0.00021939,2]
[320325324,1711291639629,-499.99999999,0.00021939,2]
[320325325,1711291639652,-500.0,0.0002194,2]
[320325326,1711291639675,-500.0,0.0002194,2]
[320325327,1711291639698,-500.0,0.0002194,2]
[320325328,1711291639723,-500.0,0.0002194,2]
[320325329,1711291639746,-500.0,0.0002194,2]
[320325330,1711291639770,-500.0,0.0002194,2]
[320325331,1711291639793,-500.0,0.0002194,2]
[320325332,1711291639816,-500.0,0.0002194,2]
[320325333,1711291639837,-500.0,0.0002194,2]
[320325334,1711291639858,-500.0,0.0002194,2]
[320325335,1711291639882,-500.0,0.0002194,2]
[320325336,1711291639906,-500.0,0.0002194,2]
[320325337,1711291639930,-303.50667668,0.0002194,2]
[320325338,1711291643105,-196.49332332,0.0002194,2]
[320325339,1711291643128,-2555.0,0.0002194,2]
[320325340,1711291643151,-500.0,0.0002194,2]
[320325341,1711291643173,-621.05748636,0.00021941,2]
[320325342,1711291643196,-166.666666,0.00021957,2]
[320325343,1711291643237,-877.29562893,0.0002217,2]
[320325344,1711291643264,-500.0,0.00022214,2]
[320325345,1711291643292,-500.0,0.00022214,2]
[320325346,1711291643317,-500.0,0.00022214,2]
[320325347,1711291643342,-500.0,0.00022214,2]
[320325348,1711291643366,-500.0,0.00022214,2]
[320325349,1711291643391,-596.77497147,0.00022214,2]
[320325350,1711291643556,-2555.0,0.00022214,2]
[320325351,1711291643576,-500.0,0.00022214,2]
[320325352,1711291643596,-500.0,0.00022488,2]
[320325353,1711291643616,-500.0,0.00022488,2]
[320325354,1711291643639,-500.0,0.00022488,2]
[320325355,1711291643659,-500.0,0.00022488,2]
[320325356,1711291643680,-500.0,0.00022488,2]
[320325357,1711291643701,-2555.0,0.00022488,2]
[320325358,1711291643721,-500.0,0.00022488,2]
[320325359,1711291643741,-166.666666,0.00022555,2]
[320325360,1711291643761,-480.0,0.00022691,2]
[320325361,1711291643781,-500.0,0.00022762,2]
[320325362,1711291643802,-500.0,0.00022762,2]
[320325363,1711291643822,-228.3,0.00022762,2]
[320325364,1711291643842,-500.0,0.00022762,2]
[320325365,1711291643862,-500.0,0.00022762,2]
[320325366,1711291643882,-2555.0,0.00022762,2]
[320325367,1711291643902,-500.0,0.00022762,2]
[320325368,1711291643922,-196.6958928,0.00022913,2]
[320325369,1711291643942,-500.0,0.00023036,2]
[320325370,1711291643961,-500.0,0.00023036,2]
[320325371,1711291643982,-500.0,0.00023036,2]
[320325372,1711291644003,-2555.0,0.00023036,2]
[320325373,1711291644025,-500.0,0.00023036,2]
[320325374,1711291644047,-620.05287432,0.00023038,2]
[320325375,1711291644067,-166.666666,0.00023154,2]
[320325376,1711291644086,-166.9433479,0.00023288,2]
[320325377,1711291644107,-500.0,0.0002331,2]
[320325378,1711291644127,-500.0,0.0002331,2]
[320325379,1711291644146,-288.62,0.0002331,2]
[320325380,1711291644167,-2555.0,0.0002331,2]
[320325381,1711291644187,-500.0,0.0002331,2]
[320325382,1711291644206,-169.0,0.00023411,2]
[320325383,1711291644225,-500.0,0.00023584,2]
[320325384,1711291644243,-500.0,0.00023584,2]
[320325385,1711291644263,-1809.29659124,0.00023584,2]
[320325386,1711291645095,-745.70340876,0.00023584,2]
[320325387,1711291645116,-500.0,0.00023584,2]
[320325388,1711291645137,-169.0,0.00023685,2]
[320325389,1711291645157,-166.666666,0.00023753,2]
[320325390,1711291645178,-500.0,0.00023858,2]
[320325391,1711291645199,-500.0,0.00023858,2]
[320325392,1711291645220,-500.0,0.00023858,2]
[320325393,1711291645241,-2555.0,0.00023858,2]
[320325394,1711291645260,-170.0,0.00023959,2]
[320325395,1711291645280,-228.14352074,0.00024047,2]
[320325396,1711291645301,-500.0,0.00024132,2]
[320325397,1711291645322,-500.0,0.00024132,2]
[320325398,1711291645342,-500.0,0.00024132,2]
[320325399,1711291645364,-2555.0,0.00024132,2]
[320325400,1711291645384,-166.666666,0.00024351,2]
[320325401,1711291645408,-500.0,0.00024406,2]
[320325402,1711291645427,-500.0,0.00024406,2]
[320325403,1711291645449,-500.0,0.00024406,2]
[320325404,1711291645481,-2555.0,0.00024406,2]
[320325405,1711291645503,-380.0,0.00024658,2]
[320325406,1711291645524,-200.0,0.00024658,2]
[320325407,1711291645552,-500.0,0.0002468,2]
[320325408,1711291645578,-500.0,0.0002468,2]
[320325409,1711291645600,-500.0,0.0002468,2]
[320325410,1711291645622,-2555.0,0.0002468,2]
[320325411,1711291645645,-6424.49256845,0.000248,7]
[320325412,1711291645667,-166.666666,0.0002495,2]
[320325413,1711291645691,-500.0,0.00024954,2]
[320325414,1711291645713,-500.0,0.00024954,2]
[320325415,1711291645735,-500.0,0.00024954,2]
[320325416,1711291645757,-2555.0,0.00024954,2]
[320325417,1711291645779,-2000.0,0.0002499,2]
[320325418,1711291645805,-2000.0,0.00025092,2]
[320325419,1711291645827,-651.76457997,0.00025093,2]
[320325420,1711291645847,-250.964153,0.00025106,2]
[320325421,1711291645867,-2000.0,0.00025194,2]
[320325422,1711291645890,-500.0,0.00025228,2]
[320325423,1711291645911,-500.0,0.00025228,2]
[320325424,1711291645932,-500.0,0.00025228,2]
[320325425,1711291645952,-2555.0,0.00025228,2]
[320325426,1711291645972,-2886.531763,0.00025295,2]
[320325427,1711291645992,-500.0,0.00025502,2]
[320325428,1711291646013,-500.0,0.00025502,2]
[320325429,1711291646035,-500.0,0.00025502,2]
[320325430,1711291646063,-2555.0,0.00025502,2]
[320325431,1711291646083,-199.50382492,0.00025589,2]
[320325432,1711291646104,-187.38986051,0.0002569,2]
[320325433,1711291646126,-577.63,0.00025776,2]
[320325434,1711291646147,-500.0,0.00025776,2]
[320325435,1711291646169,-450.46,0.00025776,2]
[320325436,1711291646192,-2555.0,0.00025776,2]
[320325437,1711291646213,-500.0,0.0002605,2]
[320325438,1711291646235,-2555.0,0.0002605,2]
[320325439,1711291646256,-651.76457997,0.00026055,2]
[320325440,1711291646277,-500.0,0.00026324,2]
[320325441,1711291646300,-2555.0,0.00026324,2]
[320325442,1711291646326,-500.0,0.00026598,2]
[320325443,1711291646348,-2555.0,0.00026598,2]
[320325444,1711291646369,-171.4072839,0.0002669,2]
[320325445,1711291646391,-1373.65613232,0.0002669,2]
[320325446,1711291646418,-608.84173967,0.0002669,2]
[320325447,1711291646439,-270.49584508,0.0002669,2]
[320325448,1711291646460,-2604.83304998,0.0002669,2]
[320325449,1711291646482,-3508.32344105,0.0002669,2]
[320325450,1711291646502,-661.46279588,0.0002669,2]
[320325451,1711291646524,-389.28903911,0.00026691,2]
[320325452,1711291646545,-500.0,0.00026691,2]
[320325453,1711291646564,-500.0,0.00026691,2]
[320325454,1711291646585,-304.25757518,0.00026691,2]
[320325455,1711291646605,-564.5212079,0.00026691,2]
[320325456,1711291646626,-500.0,0.00026692,2]
[320325457,1711291646646,-500.0,0.00026692,2]
[320325458,1711291646667,-499.19217239,0.00026692,2]
[320325459,1711291646687,-500.0,0.00026692,2]
[320325460,1711291646716,-500.0,0.00026692,2]
[320325461,1711291646737,-500.0,0.00026692,2]
[320325462,1711291646758,-500.0,0.00026692,2]
[320325463,1711291646779,-500.0,0.00026692,2]
[320325464,1711291646800,-616.83753945,0.00026692,2]
[320325465,1711291646821,-500.0,0.00026692,2]
[320325466,1711291646842,-500.0,0.00026692,2]
[320325467,1711291646863,-500.0,0.00026692,2]
[320325468,1711291646884,-500.0,0.00026692,2]
[320325469,1711291646905,-500.0,0.00026692,2]
[320325470,1711291646927,-564.25077004,0.00026692,2]
[320325471,1711291646949,-500.0,0.00026692,2]
[320325472,1711291646970,-500.0,0.00026692,2]
[320325473,1711291646991,-500.0,0.00026692,2]
[320325474,1711291647013,-500.0,0.00026692,2]
[320325475,1711291647034,-567.08,0.00026692,2]
[320325476,1711291647057,-500.0,0.00026692,2]
[320325477,1711291647078,-500.0,0.00026692,2]
[320325478,1711291647101,-500.0,0.00026692,2]
[320325479,1711291647122,-500.0,0.00026692,2]
[320325480,1711291647240,-500.0,0.00026692,2]
[320325481,1711291647262,-500.0,0.00026692,2]
[320325482,1711291647283,-500.0,0.00026692,2]
[320325483,1711291647305,-500.0,0.00026692,2]
[320325484,1711291647326,-500.0,0.00026692,2]
[320325485,1711291647347,-1293.93,0.00026692,2]
[320325486,1711291647368,-500.0,0.00026692,2]
[320325487,1711291647388,-500.0,0.00026692,2]
[320325488,1711291647413,-500.0,0.00026692,2]
[320325489,1711291647434,-500.0,0.00026692,2]
[320325490,1711291647456,-500.0,0.00026692,2]
[320325491,1711291647477,-500.0,0.00026692,2]
[320325492,1711291647499,-500.0,0.00026692,2]
[320325493,1711291647520,-500.0,0.00026692,2]
[320325494,1711291647540,-343.57132068,0.00026692,2]
[320325495,1711291647561,-500.0,0.00026692,2]
[320325496,1711291647587,-500.0,0.00026692,2]
[320325497,1711291647611,-500.0,0.00026692,2]
[320325498,1711291647635,-500.0,0.00026692,2]
[320325499,1711291647658,-500.0,0.00026692,2]
[320325500,1711291647680,-500.0,0.00026692,2]
[320325501,1711291647701,-500.0,0.00026692,2]
[320325502,1711291647722,-500.0,0.00026692,2]
[320325503,1711291647742,-500.0,0.00026692,2]
[320325504,1711291647763,-500.0,0.00026692,2]
[320325505,1711291647784,-500.0,0.00026692,2]
[320325506,1711291647805,-500.0,0.00026692,2]
[320325507,1711291647826,-2317.43,0.00026692,2]
[320325508,1711291647847,-568.52,0.00026692,2]
[320325509,1711291647868,-500.0,0.00026692,2]
[320325510,1711291647889,-500.0,0.00026872,2]
[320325511,1711291647910,-2555.0,0.00026872,2]
[320325512,1711291647930,-500.0,0.00026966,2]
[320325513,1711291647951,-500.0,0.00026966,2]
[320325514,1711291647972,-500.0,0.00026966,2]
[320325515,1711291647992,-500.0,0.00026966,2]
[320325516,1711291648013,-500.0,0.00026966,2]
[320325517,1711291648032,-500.0,0.00026966,2]
[320325518,1711291648054,-500.0,0.00026966,2]
[320325519,1711291648075,-500.0,0.00026966,2]
[320325520,1711291648097,-500.0,0.00026966,2]
[320325521,1711291648118,-500.0,0.00026966,2]
[320325522,1711291648139,-500.0,0.00026966,2]
[320325523,1711291648159,-500.0,0.00026966,2]
[320325524,1711291648180,-500.0,0.00026966,2]
[320325525,1711291648201,-567.08,0.00026966,2]
[320325526,1711291648221,-500.0,0.00026966,2]
[320325527,1711291648241,-500.0,0.00026966,2]
[320325528,1711291648262,-500.0,0.00026966,2]
[320325529,1711291648283,-500.0,0.00026966,2]
[320325530,1711291648304,-500.0,0.00026966,2]
[320325531,1711291648325,-500.0,0.00026966,2]
[320325532,1711291648346,-500.0,0.00026966,2]
[320325533,1711291648369,-331.90290188,0.00026966,2]
[320325534,1711291648390,-500.0,0.00026966,2]
[320325535,1711291648412,-1293.93,0.00026966,2]
[320325536,1711291648434,-500.0,0.00026966,2]
[320325537,1711291648456,-500.0,0.00026966,2]
[320325538,1711291648478,-500.0,0.00026966,2]
[320325539,1711291648503,-500.0,0.00026966,2]
[320325540,1711291648524,-500.0,0.00026966,2]
[320325541,1711291648546,-500.0,0.00026966,2]
[320325542,1711291648567,-414.76572228,0.00026966,2]
[320325543,1711291648588,-500.0,0.00026966,2]
[320325544,1711291648609,-500.0,0.00026966,2]
[320325545,1711291648630,-500.0,0.00026966,2]
[320325546,1711291648650,-500.0,0.00026966,2]
[320325547,1711291648671,-500.0,0.00026966,2]
[320325548,1711291648691,-500.0,0.00026966,2]
[320325549,1711291648712,-500.0,0.00026966,2]
[320325550,1711291648733,-500.0,0.00026966,2]
[320325551,1711291648754,-500.0,0.00026966,2]
[320325552,1711291648774,-500.0,0.00026966,2]
[320325553,1711291648796,-500.0,0.00026966,2]
[320325554,1711291648817,-500.0,0.00026966,2]
[320325555,1711291648838,-2317.43,0.00026966,2]
[320325556,1711291648860,-568.52,0.00026966,2]
[320325557,1711291648881,-500.0,0.00026966,2]
[320325558,1711291648901,-1619.429426,0.00027,2]
[320325559,1711291648924,-651.76457997,0.00027017,2]
[320325560,1711291648944,-500.0,0.00027146,2]
[320325561,1711291648966,-2555.0,0.00027146,2]
[320325562,1711291648986,-500.0,0.0002724,2]
[320325563,1711291649008,-500.0,0.0002724,2]
[320325564,1711291649030,-500.0,0.0002724,2]
[320325565,1711291649052,-500.0,0.0002724,2]
[320325566,1711291649072,-500.0,0.0002724,2]
[320325567,1711291649094,-500.0,0.0002724,2]
[320325568,1711291649116,-500.0,0.0002724,2]
[320325569,1711291649138,-500.0,0.0002724,2]
[320325570,1711291649161,-500.0,0.0002724,2]
[320325571,1711291649183,-500.0,0.0002724,2]
[320325572,1711291649205,-500.0,0.0002724,2]
[320325573,1711291649227,-500.0,0.0002724,2]
[320325574,1711291649249,-567.08,0.0002724,2]
[320325575,1711291649270,-500.0,0.0002724,2]
[320325576,1711291649293,-500.0,0.0002724,2]
[320325577,1711291649315,-500.0,0.0002724,2]
[320325578,1711291649336,-500.0,0.0002724,2]
[320325579,1711291649358,-500.0,0.0002724,2]
[320325580,1711291649379,-500.0,0.0002724,2]
[320325581,1711291649403,-1293.93,0.0002724,2]
[320325582,1711291649425,-500.0,0.0002724,2]
[320325583,1711291649446,-500.0,0.0002724,2]
[320325584,1711291649467,-500.0,0.0002724,2]
[320325585,1711291649491,-500.0,0.0002724,2]
[320325586,1711291649513,-500.0,0.0002724,2]
[320325587,1711291649533,-500.0,0.0002724,2]
[320325588,1711291649556,-500.0,0.0002724,2]
[320325589,1711291649577,-500.0,0.0002724,2]
[320325590,1711291649599,-500.0,0.0002724,2]
[320325591,1711291649619,-627.94,0.0002724,2]
[320325592,1711291649640,-477.97515065,0.0002724,2]
[320325593,1711291649661,-500.0,0.0002724,2]
[320325594,1711291649682,-500.0,0.0002724,2]
[320325595,1711291649703,-500.0,0.0002724,2]
[320325596,1711291649725,-2317.43,0.0002724,2]
[320325597,1711291649745,-568.52,0.0002724,2]
[320325598,1711291649765,-228.14352074,0.00027297,2]
[320325599,1711291649786,-500.0,0.00027397,14]
[320325600,1711291649807,-500.0,0.00027397,14]
[320325601,1711291649828,-500.0,0.00027397,14]
[320325602,1711291649848,-1000.0,0.00027397,2]
[320325603,1711291649867,-1000.0,0.00027397,2]
[320325604,1711291649891,-1000.0,0.00027397,2]
[320325605,1711291649911,-762.32649041,0.00027397,2]
[320325606,1711291649933,-762.32649041,0.00027397,2]
[320325607,1711291650055,-762.32649041,0.00027397,2]
[320325608,1711291650077,-762.32649041,0.00027397,2]
[320325609,1711291650099,-762.32649041,0.00027397,2]
[320325610,1711291650120,-762.32649041,0.00027397,2]
[320325611,1711291650141,-762.32649041,0.00027397,2]
[320325612,1711291650163,-762.32649041,0.00027397,2]
[320325613,1711291650185,-762.32649041,0.00027397,2]
[320325614,1711291650206,-762.32649041,0.00027397,2]
[320325615,1711291650227,-762.32649041,0.00027397,2]
[320325616,1711291650249,-762.32649041,0.00027397,2]
[320325617,1711291650273,-762.32649041,0.00027397,2]
[320325618,1711291650295,-762.32649041,0.00027397,2]
[320325619,1711291650316,-762.32649041,0.00027397,2]
[320325620,1711291650337,-762.32649041,0.00027397,2]
[320325621,1711291650358,-762.32649041,0.00027397,2]
[320325622,1711291650380,-762.32649041,0.00027397,2]
[320325623,1711291650400,-762.32649041,0.00027397,2]
[320325624,1711291650425,-762.32649041,0.00027397,2]
[320325625,1711291650446,-762.32649041,0.00027397,2]
[320325626,1711291650467,-762.32649041,0.00027397,2]
[320325627,1711291650488,-762.32649041,0.00027397,2]
[320325628,1711291650511,-762.32649041,0.00027397,2]
[320325629,1711291650532,-762.32649041,0.00027397,2]
[320325630,1711291650554,-762.32649041,0.00027397,2]
[320325631,1711291650578,-762.32649041,0.00027397,2]
[320325632,1711291650600,-762.32649041,0.00027397,2]
[320325633,1711291650621,-762.32649041,0.00027397,2]
[320325634,1711291650641,-762.32649041,0.00027397,2]
[320325635,1711291650662,-762.32649041,0.00027397,2]
[320325636,1711291650683,-762.32649041,0.00027397,2]
[320325637,1711291650704,-762.32649041,0.00027397,2]
[320325638,1711291650725,-762.32649041,0.00027397,2]
[320325639,1711291650745,-762.32649041,0.00027397,2]
[320325640,1711291650765,-762.32649041,0.00027397,2]
[320325641,1711291650785,-762.32649041,0.00027397,2]
[320325642,1711291650807,-762.32649041,0.00027397,2]
[320325643,1711291650828,-762.32649041,0.00027397,2]
[320325644,1711291650848,-762.32649041,0.00027397,2]
[320325645,1711291650869,-762.32649041,0.00027397,2]
[320325646,1711291650890,-762.32649041,0.00027397,2]
[320325647,1711291650911,-762.32649041,0.00027397,2]
[320325648,1711291650931,-762.32649041,0.00027397,2]
[320325649,1711291650952,-762.32649041,0.00027397,2]
[320325650,1711291650973,-762.32649041,0.00027397,2]
[320325651,1711291650993,-762.32649041,0.00027397,2]
[320325652,1711291651014,-762.32649041,0.00027397,2]
[320325653,1711291651034,-762.32649041,0.00027397,2]
[320325654,1711291651056,-762.32649041,0.00027397,2]
[320325655,1711291651077,-762.32649041,0.00027397,2]
[320325656,1711291651097,-762.32649041,0.00027397,2]
[320325657,1711291651118,-762.32649041,0.00027397,2]
[320325658,1711291651139,-762.3264904,0.00027397,2]
[320325659,1711291651159,-762.3264904,0.00027397,2]
[320325660,1711291651179,-762.3264904,0.00027397,2]
[320325661,1711291651201,-762.3264904,0.00027397,2]
[320325662,1711291651222,-762.3264904,0.00027397,2]
[320325663,1711291651242,-762.3264904,0.00027397,2]
[320325664,1711291651263,-762.3264904,0.00027397,2]
[320325665,1711291651282,-762.3264904,0.00027397,2]
[320325666,1711291651303,-762.3264904,0.00027397,2]
[320325667,1711291651323,-762.3264904,0.00027397,2]
[320325668,1711291651344,-762.3264904,0.00027397,2]
[320325669,1711291651365,-762.3264904,0.00027397,2]
[320325670,1711291651387,-762.3264904,0.00027397,2]
[320325671,1711291651409,-685.16522933,0.00027397,2]
[320325672,1711291653101,-409.4676556,0.0002194,2]
[320325673,1711291753241,-90.5323444,0.0002194,2]
[320325674,1711291753262,-421.18962368,0.0002194,2]
[320325675,1711291753282,-500.0,0.0002194,2]
[320325676,1711291753302,-500.0,0.0002194,2]
[320325677,1711291753321,-500.0,0.0002194,2]
[320325678,1711291753342,-500.0,0.0002194,2]
[320325679,1711291753363,-500.0,0.0002194,2]
[320325680,1711291753383,-500.0,0.0002194,2]
[320325681,1711291753403,-500.0,0.0002194,2]
[320325682,1711291753421,-500.0,0.00022214,2]
[320325683,1711291753444,-500.0,0.00022214,2]
[320325684,1711291753463,-500.0,0.00022214,2]
[320325685,1711291753485,-500.0,0.00022488,2]
[320325686,1711291753506,-500.0,0.00022488,2]
[320325687,1711291753527,-500.0,0.00022762,2]
[320325688,1711291753547,-500.0,0.00022762,2]
[320325689,1711291753568,-500.0,0.00023036,2]
[320325690,1711291753588,-500.0,0.00023036,2]
[320325691,1711291753608,-500.0,0.0002331,2]
[320325692,1711291753628,-500.0,0.0002331,2]
[320325693,1711291753648,-500.0,0.00023584,2]
[320325694,1711291753667,-500.0,0.00023584,2]
[320325695,1711291753688,-500.0,0.00023858,2]
[320325696,1711291753708,-500.0,0.00023858,2]
[320325697,1711291753728,-500.0,0.00024132,2]
[320325698,1711291753750,-500.0,0.00024132,2]
[320325699,1711291753770,-500.0,0.00024406,2]
[320325700,1711291753790,-500.0,0.00024406,2]
[320325701,1711291753810,-500.0,0.0002468,2]
[320325702,1711291753829,-500.0,0.0002468,2]
[320325703,1711291753848,-500.0,0.00024954,2]
[320325704,1711291753868,-500.0,0.00024954,2]
[320325705,1711291753889,-500.0,0.00025228,2]
[320325706,1711291753909,-500.0,0.00025228,2]
[320325707,1711291753928,-3388.24819139,0.00025297,2]
[320325708,1711291753950,-409.68,0.00025502,2]
[320325709,1711291753969,-500.0,0.00025502,2]
[320325710,1711291753989,-500.0,0.00025776,2]
[320325711,1711291754009,-500.0,0.0002605,2]
[320325712,1711291754029,-500.0,0.00026324,2]
[320325713,1711291754049,-500.0,0.00026598,2]
[320325714,1711291754068,-1000.0,0.00026688,2]
[320325715,1711291754087,-502.80817476,0.00026692,2]
[320325716,1711291754106,-500.0,0.00026692,2]
[320325717,1711291754128,-500.0,0.00026692,2]
[320325718,1711291754151,-572.35,0.00026692,2]
[320325719,1711291754171,-500.0,0.00026692,2]
[320325720,1711291754192,-500.0,0.00026692,2]
[320325721,1711291754212,-500.0,0.00026692,2]
[320325722,1711291754231,-500.0,0.00026692,2]
[320325723,1711291754250,-480.51373549,0.00026692,2]
[320325724,1711291754271,-500.0,0.00026692,2]
[320325725,1711291754292,-500.0,0.00026692,2]
[320325726,1711291754315,-500.0,0.00026692,2]
[320325727,1711291754337,-500.0,0.00026872,2]
[320325728,1711291754357,-1000.0,0.00026962,2]
[320325729,1711291754384,-500.0,0.00026966,2]
[320325730,1711291754404,-572.35,0.00026966,2]
[320325731,1711291754424,-167.84,0.00026966,2]
[320325732,1711291754446,-500.0,0.00026966,2]
[320325733,1711291754467,-500.0,0.00026966,2]
[320325734,1711291754489,-234.89823229,0.00026966,2]
[320325788,1711291832570,-500.0,0.0002194,2]
[320325789,1711291832580,-500.0,0.0002194,2]
[320325790,1711291832590,-1132.19,0.0002194,2]
[320325791,1711291832599,-500.0,0.0002194,2]
[320325792,1711291832608,-500.0,0.0002194,2]
[320325793,1711291832617,-500.0,0.0002194,2]
[320325794,1711291832627,-352.62509163,0.0002194,2]
[320325795,1711291832637,-500.0,0.0002194,2]
[320325796,1711291832646,-500.0,0.00022214,2]
[320325797,1711291832655,-267.75,0.00022214,2]
[320325798,1711291832665,-1132.19,0.00022214,2]
[320325799,1711291832674,-349.58604834,0.00022214,2]
[320325827,1711291837856,-557.96,0.0002194,2]
[320325828,1711291837865,-500.0,0.0002194,2]
[320325830,1711291837874,-500.0,0.0002194,2]
[320325831,1711291837883,-150.41395166,0.00022214,2]
[320325832,1711291837892,-500.0,0.00022214,2]
[320325833,1711291837901,-500.0,0.00022488,2]
[320325834,1711291837910,-1132.19,0.00022488,2]
[320325835,1711291837929,-300.34048319,0.00022488,2]
[320325836,1711291837939,-500.0,0.00022488,2]
[320325837,1711291837949,-500.0,0.00022762,2]
[320325838,1711291837960,-951.48325437,0.00022762,2]
[320325839,1711291837974,-180.70674563,0.00022762,2]
[320325840,1711291837984,-500.0,0.00022762,2]
[320325841,1711291837994,-500.0,0.00023036,2]
[320325842,1711291838003,-1132.19,0.00023036,2]
[320325843,1711291838013,-500.0,0.00023036,2]
[320325844,1711291838023,-500.0,0.0002331,2]
[320325845,1711291838032,-691.0080133,0.0002331,2]
[320325846,1711291838044,-441.1819867,0.0002331,2]
[320325847,1711291838053,-500.0,0.0002331,2]
[320325848,1711291838063,-500.0,0.00023584,2]
[320325849,1711291838072,-874.4590033,0.00023584,2]